[Event "*** Titled Tuesday Blitz"]
[Site "Chess.com"]
[Date "2021.02.09"]
[Round "8"]
[White "night_player"]
[Black "RafalBRC"]
[Result "0-1"]
[WhiteElo "2185"]
[BlackElo "2090"]
[TimeControl "180+1"]
[EndTime "11:26:56 PST"]
[Termination "RafalBRC won by resignation"]

1. e4 {[%clk 0:03:00.9]} 1... e6 {[%clk 0:03:00.1]} 2. d4 {[%clk 0:03:00.4]}
2... d5 {[%clk 0:03:01]} 3. Nc3 {[%clk 0:03:00.9]} 3... Nf6 {[%clk 0:02:59.2]}
4. e5 {[%clk 0:03:01.2]} 4... Nfd7 {[%clk 0:02:58.2]} 5. Nce2 {[%clk 0:03:02.1]}
5... c5 {[%clk 0:02:58.1]} 6. c3 {[%clk 0:03:03]} 6... Nc6 {[%clk 0:02:58.1]} 7.
a3 {[%clk 0:03:03.1]} 7... b5 {[%clk 0:02:52.8]} 8. Nf3 {[%clk 0:03:02.3]} 8...
a5 {[%clk 0:02:52]} 9. Nf4 {[%clk 0:03:02.6]} 9... b4 {[%clk 0:02:51.8]} 10.
axb4 {[%clk 0:03:01.4]} 10... cxb4 {[%clk 0:02:51.1]} 11. Bd3 {[%clk 0:02:59]}
11... bxc3 {[%clk 0:02:50.3]} 12. bxc3 {[%clk 0:02:59.9]} 12... Ba6 {[%clk
0:02:49.8]} 13. O-O {[%clk 0:02:59.7]} 13... Bxd3 {[%clk 0:02:49.1]} 14. Qxd3
{[%clk 0:03:00.6]} 14... Be7 {[%clk 0:02:45]} 15. c4 {[%clk 0:02:55.6]} 15...
Nb4 {[%clk 0:02:40.7]} 16. Qc3 {[%clk 0:02:52.7]} 16... dxc4 {[%clk 0:02:39.4]}
17. Qxc4 {[%clk 0:02:51.8]} 17... O-O {[%clk 0:02:39.8]} 18. d5 {[%clk
0:02:40.8]} 18... Nb6 {[%clk 0:02:38.7]} 19. Qb3 {[%clk 0:02:31.9]} 19... N6xd5
{[%clk 0:02:38.6]} 20. Nh5 {[%clk 0:02:28.4]} 20... Qc8 {[%clk 0:02:17.2]} 21.
Bg5 {[%clk 0:01:51.6]} 21... Bxg5 {[%clk 0:02:16]} 22. Nxg5 {[%clk 0:01:52.5]}
22... Qc3 {[%clk 0:02:13.5]} 23. Qxc3 {[%clk 0:01:46.9]} 23... Nxc3 {[%clk
0:02:13.6]} 24. Ra3 {[%clk 0:01:47.2]} 24... Nbd5 {[%clk 0:02:10.4]} 25. f4
{[%clk 0:01:36.1]} 25... h6 {[%clk 0:02:04.3]} 26. Nf3 {[%clk 0:01:33.1]} 26...
Ne2+ {[%clk 0:02:02.2]} 27. Kf2 {[%clk 0:01:28.3]} 27... Nexf4 {[%clk
0:02:03.1]} 28. Nxf4 {[%clk 0:01:28.6]} 28... Nxf4 {[%clk 0:02:03.2]} 29. Rfa1
{[%clk 0:01:29.5]} 29... Rfc8 {[%clk 0:01:55.5]} 30. Rxa5 {[%clk 0:01:20.8]}
30... Rxa5 {[%clk 0:01:56.4]} 31. Rxa5 {[%clk 0:01:21.3]} 31... Rc2+ {[%clk
0:01:55.5]} 32. Kg3 {[%clk 0:01:21.2]} 32... Nxg2 {[%clk 0:01:54.4]} 33. Ra8+
{[%clk 0:01:12.2]} 33... Kh7 {[%clk 0:01:53.7]} 34. Rf8 {[%clk 0:01:06.6]} 34...
Kg6 {[%clk 0:01:49.9]} 35. h4 {[%clk 0:01:05.3]} 35... Ne3 {[%clk 0:01:46.2]}
36. h5+ {[%clk 0:01:02.2]} 36... Kxh5 {[%clk 0:01:46]} 37. Rxf7 {[%clk 0:01:03]}
37... Nf5+ {[%clk 0:01:44.7]} 38. Kf4 {[%clk 0:01:00.1]} 38... Rc4+ {[%clk
0:01:43.2]} 0-1

[Event "*** Titled Tuesday Blitz"]
[Site "Chess.com"]
[Date "2021.02.09"]
[Round "8"]
[White "KruHor"]
[Black "CzechmVIII"]
[Result "0-1"]
[WhiteElo "2528"]
[BlackElo "2262"]
[TimeControl "180+1"]
[EndTime "11:27:15 PST"]
[Termination "CzechmVIII won by checkmate"]

1. e4 {[%clk 0:02:57.8]} 1... c5 {[%clk 0:03:00]} 2. Nf3 {[%clk 0:02:57.3]} 2...
d6 {[%clk 0:03:00.2]} 3. d4 {[%clk 0:02:56.8]} 3... cxd4 {[%clk 0:03:01.1]} 4.
Nxd4 {[%clk 0:02:56.6]} 4... Nf6 {[%clk 0:03:01.6]} 5. Nc3 {[%clk 0:02:56.3]}
5... g6 {[%clk 0:03:02.2]} 6. Be2 {[%clk 0:02:54.3]} 6... Bg7 {[%clk 0:03:02.3]}
7. h4 {[%clk 0:02:54.5]} 7... h5 {[%clk 0:03:01.2]} 8. Bg5 {[%clk 0:02:53.7]}
8... Nc6 {[%clk 0:02:59.2]} 9. Nb3 {[%clk 0:02:52.2]} 9... a5 {[%clk 0:02:55.8]}
10. a4 {[%clk 0:02:50]} 10... Nb4 {[%clk 0:02:45]} 11. Qd2 {[%clk 0:02:49.1]}
11... O-O {[%clk 0:02:35.1]} 12. O-O-O {[%clk 0:02:44.8]} 12... Be6 {[%clk
0:02:27]} 13. Nd4 {[%clk 0:02:44.3]} 13... Rc8 {[%clk 0:01:53.5]} 14. Nxe6
{[%clk 0:02:40.4]} 14... fxe6 {[%clk 0:01:54.4]} 15. f3 {[%clk 0:02:24]} 15...
Qd7 {[%clk 0:01:39.2]} 16. Bb5 {[%clk 0:02:22.8]} 16... Qc7 {[%clk 0:01:32.3]}
17. g4 {[%clk 0:02:21.1]} 17... hxg4 {[%clk 0:01:26.2]} 18. h5 {[%clk
0:02:20.7]} 18... gxf3 {[%clk 0:01:18.3]} 19. hxg6 {[%clk 0:02:19.6]} 19... Nxe4
{[%clk 0:01:05]} 20. Qe3 {[%clk 0:01:51.4]} 20... Na2+ {[%clk 0:00:50.2]} 21.
Kb1 {[%clk 0:01:39.9]} 21... Naxc3+ {[%clk 0:00:50.2]} 22. bxc3 {[%clk
0:01:39.5]} 22... Nxc3+ {[%clk 0:00:33.2]} 23. Kc1 {[%clk 0:01:39]} 23... Na2+
{[%clk 0:00:19.9]} 24. Kd2 {[%clk 0:01:38.4]} 24... Qxc2+ {[%clk 0:00:17.6]} 25.
Ke1 {[%clk 0:01:38.2]} 25... Bc3+ {[%clk 0:00:10.1]} 26. Kf1 {[%clk 0:01:37.4]}
26... Qg2# {[%clk 0:00:09.4]} 0-1

[Event "*** Titled Tuesday Blitz"]
[Site "Chess.com"]
[Date "2021.02.09"]
[Round "8"]
[White "InitiatingASC"]
[Black "Michaelson_11"]
[Result "1-0"]
[WhiteElo "2414"]
[BlackElo "2281"]
[TimeControl "180+1"]
[EndTime "11:27:16 PST"]
[Termination "InitiatingASC won by resignation"]

1. Nf3 {[%clk 0:03:00.9]} 1... Nf6 {[%clk 0:02:57.5]} 2. g3 {[%clk 0:03:01]}
2... g6 {[%clk 0:02:58.4]} 3. Bg2 {[%clk 0:03:01.6]} 3... Bg7 {[%clk 0:02:58.5]}
4. O-O {[%clk 0:03:02.3]} 4... O-O {[%clk 0:02:58.7]} 5. d3 {[%clk 0:03:03]}
5... d6 {[%clk 0:02:59.5]} 6. c4 {[%clk 0:03:03]} 6... Nbd7 {[%clk 0:02:58.5]}
7. Nc3 {[%clk 0:03:03]} 7... e5 {[%clk 0:02:50.9]} 8. Rb1 {[%clk 0:03:02.3]}
8... Nh5 {[%clk 0:02:47.5]} 9. Ne1 {[%clk 0:03:00.6]} 9... f5 {[%clk 0:02:42.2]}
10. Nc2 {[%clk 0:03:00.7]} 10... Nhf6 {[%clk 0:02:35.6]} 11. b4 {[%clk
0:03:00.7]} 11... c6 {[%clk 0:02:35.6]} 12. b5 {[%clk 0:02:59.5]} 12... Qc7
{[%clk 0:02:18.8]} 13. bxc6 {[%clk 0:02:56.7]} 13... bxc6 {[%clk 0:02:14.6]} 14.
Nb5 {[%clk 0:02:55.7]} 14... Qb6 {[%clk 0:02:09.6]} 15. Ba3 {[%clk 0:02:49]}
15... Ne8 {[%clk 0:01:44.7]} 16. Nxd6 {[%clk 0:02:44.3]} 16... Qa6 {[%clk
0:01:34.9]} 17. Nxc8 {[%clk 0:02:33.1]} 17... Rxc8 {[%clk 0:01:27.5]} 18. Bxf8
{[%clk 0:02:33.3]} 18... Bxf8 {[%clk 0:01:22.9]} 19. Nb4 {[%clk 0:02:27]} 19...
Bxb4 {[%clk 0:01:13.4]} 20. Rxb4 {[%clk 0:02:26.1]} 20... Qxa2 {[%clk
0:01:12.3]} 21. Ra4 {[%clk 0:02:22.9]} 21... Qb2 {[%clk 0:01:04.2]} 22. Rxa7
{[%clk 0:02:22.2]} 22... Nc5 {[%clk 0:00:58.8]} 23. Bf3 {[%clk 0:02:12.2]} 23...
Nd6 {[%clk 0:00:49.7]} 24. Qa1 {[%clk 0:02:09.8]} 24... Qxa1 {[%clk 0:00:41.7]}
25. Rfxa1 {[%clk 0:02:10.7]} 25... e4 {[%clk 0:00:41.2]} 26. dxe4 {[%clk
0:02:07.1]} 26... fxe4 {[%clk 0:00:37.9]} 27. Bg2 {[%clk 0:01:52.8]} 27... Nxc4
{[%clk 0:00:31.8]} 28. Rc1 {[%clk 0:01:47.6]} 28... Rd8 {[%clk 0:00:26]} 29.
Rxc4 {[%clk 0:01:41.7]} 29... Rd1+ {[%clk 0:00:25.6]} 30. Bf1 {[%clk 0:01:42]}
30... Nb3 {[%clk 0:00:25.4]} 31. Rxc6 {[%clk 0:01:38.1]} 1-0

[Event "*** Titled Tuesday Blitz"]
[Site "Chess.com"]
[Date "2021.02.09"]
[Round "8"]
[White "JQuiroga18"]
[Black "AndrewMaco"]
[Result "0-1"]
[WhiteElo "2421"]
[BlackElo "2671"]
[TimeControl "180+1"]
[EndTime "11:27:21 PST"]
[Termination "AndrewMaco won by resignation"]

1. e4 {[%clk 0:03:00.9]} 1... c5 {[%clk 0:02:55]} 2. Nf3 {[%clk 0:03:00.6]} 2...
d6 {[%clk 0:02:55.4]} 3. d4 {[%clk 0:03:00.1]} 3... cxd4 {[%clk 0:02:56.3]} 4.
Nxd4 {[%clk 0:03:00.6]} 4... Nf6 {[%clk 0:02:57.1]} 5. Nc3 {[%clk 0:03:00.7]}
5... a6 {[%clk 0:02:57.8]} 6. g3 {[%clk 0:03:01]} 6... e5 {[%clk 0:02:41.5]} 7.
Nde2 {[%clk 0:03:00.6]} 7... Nbd7 {[%clk 0:02:22.2]} 8. Bg2 {[%clk 0:02:59.6]}
8... b5 {[%clk 0:02:21.1]} 9. h3 {[%clk 0:02:57.6]} 9... Bb7 {[%clk 0:02:20.5]}
10. g4 {[%clk 0:02:56.9]} 10... b4 {[%clk 0:02:15.4]} 11. Nd5 {[%clk 0:02:56.4]}
11... Nxd5 {[%clk 0:02:14.6]} 12. exd5 {[%clk 0:02:57.3]} 12... Be7 {[%clk
0:02:15.3]} 13. O-O {[%clk 0:02:54.8]} 13... O-O {[%clk 0:02:10.6]} 14. Ng3
{[%clk 0:02:53.7]} 14... Bg5 {[%clk 0:02:06.8]} 15. a3 {[%clk 0:02:50]} 15... a5
{[%clk 0:02:05.4]} 16. Bxg5 {[%clk 0:02:44.6]} 16... Qxg5 {[%clk 0:02:04]} 17.
Ne4 {[%clk 0:02:44.5]} 17... Qe7 {[%clk 0:02:03.4]} 18. Qd2 {[%clk 0:02:37]}
18... bxa3 {[%clk 0:01:44.6]} 19. Rxa3 {[%clk 0:02:35.2]} 19... Nb6 {[%clk
0:01:45.3]} 20. b3 {[%clk 0:02:03.3]} 20... Nxd5 {[%clk 0:01:41.9]} 21. Rxa5
{[%clk 0:02:01.9]} 21... Rxa5 {[%clk 0:01:39]} 22. Qxa5 {[%clk 0:02:01.6]} 22...
Nf4 {[%clk 0:01:39.6]} 23. Re1 {[%clk 0:01:39]} 23... f5 {[%clk 0:01:35.7]} 24.
gxf5 {[%clk 0:01:31.2]} 24... Nxg2 {[%clk 0:01:29.6]} 25. Kxg2 {[%clk
0:01:27.7]} 25... Qg5+ {[%clk 0:01:30.1]} 26. Kf1 {[%clk 0:01:22.9]} 26... Qxf5
{[%clk 0:01:28.8]} 0-1

[Event "*** Titled Tuesday Blitz"]
[Site "Chess.com"]
[Date "2021.02.09"]
[Round "8"]
[White "Ze-Pequeno"]
[Black "Pogosian_Manvel"]
[Result "0-1"]
[WhiteElo "2237"]
[BlackElo "2397"]
[TimeControl "180+1"]
[EndTime "11:27:30 PST"]
[Termination "Pogosian_Manvel won by checkmate"]

1. e4 {[%clk 0:03:00.9]} 1... c6 {[%clk 0:02:59.5]} 2. b3 {[%clk 0:02:59]} 2...
d5 {[%clk 0:03:00.4]} 3. Bb2 {[%clk 0:02:58.9]} 3... dxe4 {[%clk 0:02:57.5]} 4.
Nc3 {[%clk 0:02:47]} 4... Nf6 {[%clk 0:02:56.4]} 5. Nge2 {[%clk 0:02:46.5]} 5...
Bf5 {[%clk 0:02:47.9]} 6. Ng3 {[%clk 0:02:46.1]} 6... Bg6 {[%clk 0:02:48.3]} 7.
Qe2 {[%clk 0:02:45.3]} 7... e6 {[%clk 0:02:38.6]} 8. Ncxe4 {[%clk 0:02:43.5]}
8... Be7 {[%clk 0:02:39.1]} 9. O-O-O {[%clk 0:02:42.6]} 9... Nbd7 {[%clk
0:02:35.8]} 10. Kb1 {[%clk 0:02:40.7]} 10... a5 {[%clk 0:02:34]} 11. h4 {[%clk
0:02:37.1]} 11... h6 {[%clk 0:02:28.3]} 12. h5 {[%clk 0:02:35.6]} 12... Bh7
{[%clk 0:02:26.6]} 13. f4 {[%clk 0:02:34.8]} 13... O-O {[%clk 0:02:23.1]} 14.
Rh3 {[%clk 0:02:28]} 14... a4 {[%clk 0:02:23.5]} 15. Nxf6+ {[%clk 0:02:13.5]}
15... Bxf6 {[%clk 0:02:20.3]} 16. d4 {[%clk 0:02:09.2]} 16... axb3 {[%clk
0:02:19.1]} 17. axb3 {[%clk 0:02:10.1]} 17... Qa5 {[%clk 0:02:06.2]} 18. Ne4
{[%clk 0:02:08.1]} 18... Bxe4 {[%clk 0:01:48]} 19. Qxe4 {[%clk 0:02:06.7]} 19...
c5 {[%clk 0:01:48.6]} 20. Re3 {[%clk 0:01:14.3]} 20... cxd4 {[%clk 0:01:44.3]}
21. Bd3 {[%clk 0:00:56.3]} 21... Rfd8 {[%clk 0:01:35.1]} 22. Qh7+ {[%clk
0:00:28.7]} 22... Kf8 {[%clk 0:01:33.6]} 23. Rh3 {[%clk 0:00:29.6]} 23... Nc5
{[%clk 0:01:24.1]} 24. g4 {[%clk 0:00:29.7]} 24... Rdc8 {[%clk 0:01:13.3]} 25.
g5 {[%clk 0:00:28.1]} 25... Qa2+ {[%clk 0:01:11.2]} 26. Kc1 {[%clk 0:00:27.7]}
26... Nxb3# {[%clk 0:01:11.8]} 0-1

[Event "*** Titled Tuesday Blitz"]
[Site "Chess.com"]
[Date "2021.02.09"]
[Round "8"]
[White "Arseniy_Nesterov"]
[Black "manitodeplomo"]
[Result "1-0"]
[WhiteElo "2811"]
[BlackElo "2627"]
[TimeControl "180+1"]
[EndTime "11:27:31 PST"]
[Termination "Arseniy_Nesterov won by resignation"]

1. d4 {[%clk 0:03:00.9]} 1... d5 {[%clk 0:02:50.6]} 2. c4 {[%clk 0:03:01.3]}
2... e6 {[%clk 0:02:51.1]} 3. Nf3 {[%clk 0:03:01.1]} 3... Nf6 {[%clk 0:02:49.9]}
4. Nc3 {[%clk 0:03:00.9]} 4... dxc4 {[%clk 0:02:49.3]} 5. e4 {[%clk 0:03:00.7]}
5... Bb4 {[%clk 0:02:48.1]} 6. Bxc4 {[%clk 0:03:00.5]} 6... Nxe4 {[%clk
0:02:46.6]} 7. O-O {[%clk 0:03:00.5]} 7... Nxc3 {[%clk 0:02:46.3]} 8. bxc3
{[%clk 0:03:01.4]} 8... Be7 {[%clk 0:02:46.6]} 9. Ne5 {[%clk 0:03:01.1]} 9...
O-O {[%clk 0:02:46.5]} 10. Qg4 {[%clk 0:03:01.5]} 10... c5 {[%clk 0:02:36.7]}
11. Bf4 {[%clk 0:02:41.7]} 11... cxd4 {[%clk 0:02:33.2]} 12. Rad1 {[%clk
0:02:39.2]} 12... Nc6 {[%clk 0:02:29.5]} 13. cxd4 {[%clk 0:02:26.2]} 13... Na5
{[%clk 0:02:17.3]} 14. Bd3 {[%clk 0:02:10.2]} 14... Bd7 {[%clk 0:01:33.9]} 15.
Bxh7+ {[%clk 0:01:22.2]} 15... Kxh7 {[%clk 0:01:28.4]} 16. Rd3 {[%clk
0:01:20.3]} 16... g6 {[%clk 0:00:52.2]} 17. Rh3+ {[%clk 0:01:15.6]} 17... Kg7
{[%clk 0:00:13.1]} 18. Bh6+ {[%clk 0:01:15.1]} 18... Kg8 {[%clk 0:00:11.3]} 19.
Nxg6 {[%clk 0:01:14.9]} 1-0

[Event "*** Titled Tuesday Blitz"]
[Site "Chess.com"]
[Date "2021.02.09"]
[Round "8"]
[White "champ2005"]
[Black "Gloomy_Wanderer"]
[Result "1-0"]
[WhiteElo "3008"]
[BlackElo "2734"]
[TimeControl "180+1"]
[EndTime "11:27:35 PST"]
[Termination "champ2005 won by resignation"]

1. d4 {[%clk 0:03:00.9]} 1... Nf6 {[%clk 0:02:58.4]} 2. Nc3 {[%clk 0:03:01.2]}
2... d5 {[%clk 0:02:58.5]} 3. Bf4 {[%clk 0:03:01.5]} 3... c5 {[%clk 0:02:58.9]}
4. e3 {[%clk 0:02:56.1]} 4... cxd4 {[%clk 0:02:59.2]} 5. Nb5 {[%clk 0:02:47.2]}
5... Na6 {[%clk 0:02:59.2]} 6. exd4 {[%clk 0:02:47.2]} 6... Bd7 {[%clk
0:02:45.5]} 7. c3 {[%clk 0:02:44.2]} 7... g6 {[%clk 0:02:29]} 8. Nf3 {[%clk
0:02:41.8]} 8... Bg7 {[%clk 0:02:28.7]} 9. a4 {[%clk 0:02:42.3]} 9... O-O {[%clk
0:02:28.5]} 10. Bd3 {[%clk 0:02:42]} 10... Nh5 {[%clk 0:02:21]} 11. Be3 {[%clk
0:02:39.1]} 11... Nc7 {[%clk 0:02:20.7]} 12. O-O {[%clk 0:02:36.1]} 12... a6
{[%clk 0:02:13.4]} 13. Nxc7 {[%clk 0:02:35.4]} 13... Qxc7 {[%clk 0:02:14.3]} 14.
Re1 {[%clk 0:02:32]} 14... Bg4 {[%clk 0:02:12.5]} 15. h3 {[%clk 0:02:20.7]}
15... Bxf3 {[%clk 0:02:12.3]} 16. Qxf3 {[%clk 0:02:21.6]} 16... Nf6 {[%clk
0:02:11.7]} 17. g3 {[%clk 0:02:20.3]} 17... e6 {[%clk 0:02:10.8]} 18. h4 {[%clk
0:02:20.3]} 18... h5 {[%clk 0:02:09.3]} 19. Bf4 {[%clk 0:02:15.7]} 19... Qb6
{[%clk 0:02:06.6]} 20. Re2 {[%clk 0:02:07.5]} 20... Rfc8 {[%clk 0:01:51.6]} 21.
a5 {[%clk 0:02:05.4]} 21... Qd8 {[%clk 0:01:51.7]} 22. Bg5 {[%clk 0:02:02.3]}
22... Rc6 {[%clk 0:01:23]} 23. Rae1 {[%clk 0:02:01.5]} 23... Rac8 {[%clk
0:01:20.5]} 24. Re5 {[%clk 0:01:54.9]} 24... Rb8 {[%clk 0:01:14.7]} 25. Qf4
{[%clk 0:01:08.8]} 1-0

[Event "*** Titled Tuesday Blitz"]
[Site "Chess.com"]
[Date "2021.02.09"]
[Round "8"]
[White "mbojan"]
[Black "Angel_Hranitel_37"]
[Result "0-1"]
[WhiteElo "2620"]
[BlackElo "2510"]
[TimeControl "180+1"]
[EndTime "11:27:39 PST"]
[Termination "Angel_Hranitel_37 won by resignation"]

1. Nf3 {[%clk 0:03:00.9]} 1... Nf6 {[%clk 0:02:59.5]} 2. g3 {[%clk 0:03:01.8]}
2... g6 {[%clk 0:03:00.1]} 3. Bg2 {[%clk 0:03:02.3]} 3... Bg7 {[%clk 0:03:01]}
4. O-O {[%clk 0:03:03.2]} 4... O-O {[%clk 0:03:01.3]} 5. d3 {[%clk 0:03:04.1]}
5... d6 {[%clk 0:03:02.1]} 6. e4 {[%clk 0:03:04.5]} 6... e5 {[%clk 0:03:00.7]}
7. Nbd2 {[%clk 0:03:05.4]} 7... Nc6 {[%clk 0:02:57.5]} 8. c3 {[%clk 0:03:05.9]}
8... Bg4 {[%clk 0:02:56.2]} 9. h3 {[%clk 0:03:05.7]} 9... Be6 {[%clk 0:02:56.8]}
10. Ng5 {[%clk 0:03:05.7]} 10... Qe7 {[%clk 0:02:49.3]} 11. Nxe6 {[%clk
0:03:05]} 11... fxe6 {[%clk 0:02:50.2]} 12. Qb3 {[%clk 0:03:04.8]} 12... Rab8
{[%clk 0:02:44.2]} 13. Nc4 {[%clk 0:03:03]} 13... b5 {[%clk 0:02:43.6]} 14. Ne3
{[%clk 0:03:03.1]} 14... a5 {[%clk 0:02:44]} 15. a4 {[%clk 0:03:01.8]} 15... b4
{[%clk 0:02:43.6]} 16. Qc2 {[%clk 0:02:58.6]} 16... Qd7 {[%clk 0:02:40.3]} 17.
h4 {[%clk 0:02:56.5]} 17... d5 {[%clk 0:02:34.9]} 18. Bh3 {[%clk 0:02:45.1]}
18... d4 {[%clk 0:02:34.7]} 19. Nc4 {[%clk 0:02:27.2]} 19... bxc3 {[%clk
0:02:30.6]} 20. bxc3 {[%clk 0:02:28.1]} 20... dxc3 {[%clk 0:02:31.5]} 21. Qxc3
{[%clk 0:02:27.4]} 21... Nd4 {[%clk 0:02:32]} 22. Kg2 {[%clk 0:02:20.3]} 22...
Qc6 {[%clk 0:02:00.2]} 23. Re1 {[%clk 0:01:41.3]} 23... Nd5 {[%clk 0:01:29.9]}
24. Qd2 {[%clk 0:00:48.2]} 24... Nb3 {[%clk 0:01:24.6]} 25. Qa2 {[%clk
0:00:40.7]} 25... Nxa1 {[%clk 0:01:22.1]} 26. Qxa1 {[%clk 0:00:40.1]} 26... Nb4
{[%clk 0:01:18.4]} 27. Nxa5 {[%clk 0:00:20.2]} 27... Qb6 {[%clk 0:01:14.8]} 28.
Nc4 {[%clk 0:00:19.6]} 28... Qxf2+ {[%clk 0:01:14.8]} 0-1

[Event "*** Titled Tuesday Blitz"]
[Site "Chess.com"]
[Date "2021.02.09"]
[Round "8"]
[White "CHENNAIBOND"]
[Black "TheSodabread"]
[Result "0-1"]
[WhiteElo "1674"]
[BlackElo "2114"]
[TimeControl "180+1"]
[EndTime "11:27:41 PST"]
[Termination "TheSodabread won by checkmate"]

1. e4 {[%clk 0:02:45.1]} 1... d5 {[%clk 0:02:54]} 2. exd5 {[%clk 0:02:44.4]}
2... Nf6 {[%clk 0:02:52.9]} 3. Nf3 {[%clk 0:02:42.5]} 3... Nxd5 {[%clk
0:02:47.8]} 4. d4 {[%clk 0:02:42.7]} 4... Bg4 {[%clk 0:02:45.9]} 5. Be2 {[%clk
0:02:42.4]} 5... e6 {[%clk 0:02:45.5]} 6. O-O {[%clk 0:02:41.7]} 6... Nc6 {[%clk
0:02:45.5]} 7. c4 {[%clk 0:02:34.1]} 7... Nb6 {[%clk 0:02:44.9]} 8. Be3 {[%clk
0:02:27.8]} 8... Be7 {[%clk 0:02:41.1]} 9. Nc3 {[%clk 0:02:25.6]} 9... O-O
{[%clk 0:02:39.8]} 10. b3 {[%clk 0:02:12.2]} 10... Bf6 {[%clk 0:02:38.1]} 11.
Rc1 {[%clk 0:01:56.6]} 11... Rb8 {[%clk 0:02:32]} 12. c5 {[%clk 0:01:48.1]}
12... Nd5 {[%clk 0:02:27.1]} 13. Nxd5 {[%clk 0:01:45.8]} 13... Qxd5 {[%clk
0:02:28]} 14. Bc4 {[%clk 0:01:45.4]} 14... Bxf3 {[%clk 0:02:25.8]} 15. Bxd5
{[%clk 0:01:40.8]} 15... Bxd1 {[%clk 0:02:25.4]} 16. Bxc6 {[%clk 0:01:40.6]}
16... Bg4 {[%clk 0:02:17.3]} 17. Be4 {[%clk 0:01:29.5]} 17... c6 {[%clk
0:02:08.8]} 18. Bf4 {[%clk 0:01:27.7]} 18... Rbd8 {[%clk 0:02:08.4]} 19. Bd6
{[%clk 0:01:27.6]} 19... Rfe8 {[%clk 0:02:07.5]} 20. f3 {[%clk 0:01:26.6]} 20...
Bxd4+ {[%clk 0:02:07]} 21. Kh1 {[%clk 0:01:25.5]} 21... Bh5 {[%clk 0:02:06.4]}
22. Rfd1 {[%clk 0:01:24.7]} 22... e5 {[%clk 0:02:05.2]} 23. g4 {[%clk
0:01:11.3]} 23... Bg6 {[%clk 0:02:05.2]} 24. Bxg6 {[%clk 0:01:10.4]} 24... hxg6
{[%clk 0:02:06]} 25. f4 {[%clk 0:01:06.1]} 25... f6 {[%clk 0:02:02]} 26. b4
{[%clk 0:01:00.2]} 26... b6 {[%clk 0:01:52.2]} 27. Kg2 {[%clk 0:00:55]} 27...
bxc5 {[%clk 0:01:51.9]} 28. bxc5 {[%clk 0:00:54.7]} 28... Kf7 {[%clk 0:01:51.6]}
29. Rb1 {[%clk 0:00:50.8]} 29... Rd7 {[%clk 0:01:47.3]} 30. Rb3 {[%clk
0:00:34.1]} 30... Red8 {[%clk 0:01:41.3]} 31. Rdb1 {[%clk 0:00:32.5]} 31... exf4
{[%clk 0:01:38.8]} 32. Rb7 {[%clk 0:00:30.5]} 32... g5 {[%clk 0:01:37.4]} 33.
Kf3 {[%clk 0:00:28.9]} 33... Be5 {[%clk 0:01:36.1]} 34. Bxe5 {[%clk 0:00:27.1]}
34... fxe5 {[%clk 0:01:37]} 35. Ke4 {[%clk 0:00:27.6]} 35... Ke6 {[%clk
0:01:35.9]} 36. a3 {[%clk 0:00:14.9]} 36... Rd3 {[%clk 0:01:35.8]} 37. R7b4
{[%clk 0:00:11.2]} 37... Re3# {[%clk 0:01:35.7]} 0-1

[Event "*** Titled Tuesday Blitz"]
[Site "Chess.com"]
[Date "2021.02.09"]
[Round "8"]
[White "TomasKapitanchuk"]
[Black "The_filthy"]
[Result "1-0"]
[WhiteElo "2515"]
[BlackElo "2296"]
[TimeControl "180+1"]
[EndTime "11:27:48 PST"]
[Termination "TomasKapitanchuk won by resignation"]

1. e4 {[%clk 0:03:00.9]} 1... e6 {[%clk 0:02:55]} 2. d4 {[%clk 0:03:00.4]} 2...
d5 {[%clk 0:02:53]} 3. Nd2 {[%clk 0:03:00.7]} 3... Nf6 {[%clk 0:02:52.8]} 4. e5
{[%clk 0:02:59.7]} 4... Nfd7 {[%clk 0:02:43.2]} 5. Bd3 {[%clk 0:03:00.6]} 5...
c5 {[%clk 0:02:40.5]} 6. c3 {[%clk 0:03:01.1]} 6... Nc6 {[%clk 0:02:40.4]} 7.
Ne2 {[%clk 0:03:01.8]} 7... cxd4 {[%clk 0:02:37.7]} 8. cxd4 {[%clk 0:03:02.7]}
8... f6 {[%clk 0:02:37.6]} 9. exf6 {[%clk 0:03:03.6]} 9... Nxf6 {[%clk
0:02:37.7]} 10. Nf3 {[%clk 0:03:04.1]} 10... Bd6 {[%clk 0:02:33.2]} 11. O-O
{[%clk 0:03:04.4]} 11... Qc7 {[%clk 0:02:32.5]} 12. h3 {[%clk 0:03:04.4]} 12...
O-O {[%clk 0:02:25.2]} 13. Be3 {[%clk 0:03:03.8]} 13... Bd7 {[%clk 0:02:17.5]}
14. Re1 {[%clk 0:03:02.9]} 14... Nh5 {[%clk 0:02:06.6]} 15. Nc3 {[%clk
0:02:57.2]} 15... a6 {[%clk 0:02:01.7]} 16. Bxh7+ {[%clk 0:02:37.1]} 16... Kxh7
{[%clk 0:01:57.5]} 17. Ng5+ {[%clk 0:02:37.4]} 17... Kg6 {[%clk 0:01:56.8]} 18.
Qd3+ {[%clk 0:02:34.6]} 18... Rf5 {[%clk 0:01:49.8]} 19. g4 {[%clk 0:02:33.3]}
19... Nb4 {[%clk 0:01:48.1]} 20. gxf5+ {[%clk 0:02:09.3]} 20... exf5 {[%clk
0:01:41.4]} 21. Qb1 {[%clk 0:01:58.2]} 21... Bf4 {[%clk 0:01:32.6]} 22. Nf3
{[%clk 0:01:56.7]} 22... Bxe3 {[%clk 0:01:26]} 23. Ne5+ {[%clk 0:01:52.3]} 23...
Kh7 {[%clk 0:01:20.6]} 24. Rxe3 {[%clk 0:01:48.3]} 24... Be6 {[%clk 0:01:20.7]}
25. a3 {[%clk 0:01:45.2]} 25... Nc6 {[%clk 0:01:19.7]} 26. Qd1 {[%clk
0:01:44.8]} 26... g6 {[%clk 0:01:07.8]} 27. Nf3 {[%clk 0:01:41.8]} 27... Qf4
{[%clk 0:01:01.5]} 28. Rxe6 {[%clk 0:01:38.3]} 28... Rf8 {[%clk 0:00:40.1]} 29.
Qd3 {[%clk 0:01:29.4]} 29... Ng3 {[%clk 0:00:32.5]} 30. fxg3 {[%clk 0:01:22.6]}
30... Qxg3+ {[%clk 0:00:32.5]} 31. Kf1 {[%clk 0:01:21.5]} 31... Nxd4 {[%clk
0:00:32.2]} 32. Qxd4 {[%clk 0:01:19.5]} 32... Qxf3+ {[%clk 0:00:32.1]} 33. Qf2
{[%clk 0:01:18.5]} 33... Qh1+ {[%clk 0:00:30.6]} 34. Qg1 {[%clk 0:01:14]} 34...
Qf3+ {[%clk 0:00:30.3]} 35. Ke1 {[%clk 0:01:13.3]} 35... d4 {[%clk 0:00:29.6]}
36. Qxg6+ {[%clk 0:01:12.6]} 36... Kh8 {[%clk 0:00:29.1]} 37. Qh6+ {[%clk
0:01:11.7]} 1-0